bitfinex-derivatives/quotes_BTCF0:USTF0_20250930
["timestamp","ask_amount","ask_price","bid_price","bid_amount"]
[1759232468313,1.37378746,113120.0,113110.0,0.1263025]
[1759232468817,0.56770746,113120.0,113110.0,0.1263025]
[1759232469018,1.46210156,113120.0,113110.0,0.1263025]
[1759232469218,1.41442703,113120.0,113110.0,0.1263025]
[1759232469419,0.60838703,113120.0,113110.0,0.1263025]
[1759232469619,1.38264348,113120.0,113110.0,0.1263025]
[1759232469920,0.57660348,113120.0,113110.0,0.1263025]
[1759232470118,1.38264348,113120.0,113110.0,0.1263025]
[1759232470313,0.57660348,113120.0,113110.0,0.1263025]
[1759232470516,0.47521858,113120.0,113110.0,0.1263025]
[1759232470716,1.28125858,113120.0,113110.0,0.1263025]
[1759232470918,1.36961308,113120.0,113110.0,0.1263025]
[1759232471115,1.28125858,113120.0,113110.0,0.1263025]
[1759232471521,0.45736676,113120.0,113110.0,0.1263025]
[1759232471710,1.280936,113120.0,113110.0,0.1263025]
[1759232471910,0.14554126,113120.0,113110.0,0.1263025]
[1759232472115,0.93397202,113120.0,113110.0,1.26425856]
[1759232473326,0.12797202,113120.0,113110.0,1.26425856]
[1759232473524,0.93397202,113120.0,113110.0,1.26425856]
[1759232473730,0.93397202,113120.0,113110.0,0.93486382]
[1759232474126,0.93397202,113120.0,113110.0,1.26425856]
[1759232475121,0.12797202,113120.0,113110.0,1.26425856]
[1759232475422,0.10626202,113120.0,113110.0,1.21649724]
[1759232475619,0.10626202,113120.0,113110.0,1.26425856]
[1759232476626,0.07136443,113120.0,113110.0,1.26425856]
[1759232476817,0.80592,113130.0,113120.0,0.0883565]
[1759232477022,0.80592,113130.0,113120.0,0.55133413]
[1759232477023,1.17727395,113130.0,113120.0,0.55133413]
[1759232477222,0.93622771,113130.0,113120.0,0.53089822]
[1759232477424,0.84787921,113130.0,113120.0,0.53089822]
[1759232477621,1.00809462,113130.0,113120.0,0.17009822]
[1759232477924,0.1191763,113120.0,113110.0,0.02271]
[1759232478126,0.83005025,113120.0,113110.0,0.1096741]
[1759232478325,0.83005025,113120.0,113110.0,0.1100741]
[1759232478530,0.83005025,113120.0,113110.0,0.1096741]
[1759232478925,0.83005025,113120.0,113110.0,0.1100741]
[1759232479127,0.83005025,113120.0,113110.0,0.1110741]
[1759232480031,0.83805025,113120.0,113110.0,0.1100741]
[1759232480623,0.38889395,113120.0,113110.0,0.1228541]
[1759232480825,1.18514395,113120.0,113110.0,0.1228541]
[1759232481927,0.85574921,113120.0,113110.0,0.1228541]
[1759232482232,1.18514395,113120.0,113110.0,0.1228541]
[1759232483531,1.18506395,113120.0,113110.0,0.1228541]
[1759232483927,0.85566921,113120.0,113110.0,0.1228541]
[1759232484232,0.37930395,113120.0,113110.0,0.1228541]
[1759232484430,1.18506395,113120.0,113110.0,0.1228541]
[1759232485431,1.27342035,113120.0,113110.0,0.1228541]
[1759232485628,1.64381035,113120.0,113110.0,0.1100741]
[1759232489834,0.04990921,113120.0,113110.0,0.4836541]
[1759232490039,1.18498395,113120.0,113110.0,0.1228541]
[1759232490231,1.18498395,113120.0,113110.0,0.4836541]
[1759232490736,0.37930395,113120.0,113110.0,0.4836541]
[1759232491034,1.27330035,113120.0,113110.0,0.4836541]
[1759232492638,0.46766035,113120.0,113110.0,0.4836541]
[1759232492838,1.27330035,113120.0,113110.0,0.4836541]
[1759232493938,0.46766035,113120.0,113110.0,0.4836541]
[1759232494139,1.27326035,113120.0,113110.0,0.4836541]
[1759232494440,0.94386561,113120.0,113110.0,0.4836541]
[1759232494643,1.27326035,113120.0,113110.0,0.1228541]
[1759232495036,1.63406035,113120.0,113110.0,0.1228541]
[1759232495242,1.64365035,113120.0,113110.0,0.1228541]
[1759232495839,1.64365035,113120.0,113110.0,0.1100742]
[1759232496039,1.64365035,113120.0,113110.0,0.1096742]
[1759232496248,1.28285035,113120.0,113110.0,0.1100742]
[1759232496945,1.28281035,113120.0,113110.0,0.1100742]
[1759232497445,0.47722297,113120.0,113110.0,0.1100742]
[1759232497646,1.28278297,113120.0,113110.0,0.1100742]
[1759232497945,0.95341561,113120.0,113110.0,0.1100742]
[1759232498148,1.28278297,113120.0,113110.0,0.1100742]
[1759232500740,1.28274297,113120.0,113110.0,0.1100742]
[1759232501850,1.28274297,113120.0,113110.0,0.1228542]
[1759232502149,0.47722297,113120.0,113110.0,0.1228542]
[1759232502351,1.28274297,113120.0,113110.0,0.1228542]
[1759232503453,0.04990921,113120.0,113110.0,0.1228542]
[1759232503653,0.86006921,113120.0,113110.0,0.45222156]
[1759232503945,0.86006921,113120.0,113110.0,0.81302156]
[1759232504152,0.86050921,113120.0,113110.0,0.81302156]
[1759232504642,0.86090921,113120.0,113110.0,0.4836542]
[1759232505442,0.04990921,113120.0,113110.0,0.4836542]
[1759232505645,0.04990921,113120.0,113110.0,1.21302156]
[1759232509554,0.04990921,113120.0,113110.0,0.8836542]
[1759232509753,0.04990921,113120.0,113110.0,0.93132578]
[1759232510257,0.37920779,113120.0,113110.0,1.26062436]
[1759232511952,0.04990921,113120.0,113110.0,1.26062436]
[1759232512150,0.35797779,113120.0,113110.0,1.26062436]
[1759232514962,0.008,113120.0,113110.0,0.86062436]
[1759232517259,0.008,113120.0,113110.0,1.58992294]
[1759232517666,0.008,113120.0,113110.0,1.60585652]
[1759232518568,0.008,113120.0,113110.0,2.41537652]
[1759232518767,0.08605562,113130.0,113120.0,0.1228663]
[1759232518973,1.18028296,113140.0,113130.0,0.03451]
[1759232519172,1.20107408,113140.0,113130.0,0.81295708]
[1759232519874,1.28941478,113140.0,113130.0,0.81295708]
[1759232520466,0.49266339,113140.0,113130.0,0.81295708]
[1759232520662,1.30638339,113140.0,113130.0,0.81295708]
[1759232521168,1.21804269,113140.0,113130.0,0.4836585]
[1759232521376,1.21804269,113140.0,113130.0,0.81295708]
[1759232522074,1.21804269,113140.0,113130.0,0.4836585]
[1759232522269,1.22804269,113140.0,113130.0,0.4836585]
[1759232522471,1.31638339,113140.0,113130.0,0.81295708]
[1759232522971,1.31638339,113140.0,113130.0,0.4836585]
[1759232523176,1.31638339,113140.0,113130.0,0.81295708]
[1759232523475,1.71683594,113140.0,113130.0,0.1228585]
[1759232523671,1.81903878,113140.0,113130.0,0.03451]
[1759232523878,0.1421837,113140.0,113130.0,0.1228585]
[1759232524072,0.9531437,113140.0,113130.0,0.45215708]
[1759232524375,0.1421837,113140.0,113130.0,0.81335708]
[1759232524864,0.9596237,113140.0,113130.0,0.81335708]
[1759232525179,1.28892228,113140.0,113130.0,0.81335708]
[1759232526176,0.9596237,113140.0,113130.0,0.4840585]
[1759232526376,1.28892228,113140.0,113130.0,0.81335708]
[1759232526878,0.9596237,113140.0,113130.0,0.81335708]
[1759232527077,1.28892228,113140.0,113130.0,0.81335708]
[1759232527277,0.9596237,113140.0,113130.0,0.81335708]
[1759232527478,1.28892228,113140.0,113130.0,0.81335708]
[1759232527873,0.9600237,113140.0,113130.0,0.81335708]
[1759232528172,0.1190737,113140.0,113130.0,0.8840585]
[1759232528376,0.09828258,113140.0,113130.0,1.21335708]
[1759232528578,0.09828258,113140.0,113130.0,2.03131708]
[1759232528777,0.09828258,113140.0,113130.0,2.07892947]
[1759232528978,0.09828258,113140.0,113130.0,0.93167089]
[1759232529277,0.09828258,113140.0,113130.0,1.21335708]
[1759232529479,0.53903186,113140.0,113130.0,1.21335708]
[1759232529778,0.53903186,113140.0,113130.0,0.76420858]
[1759232529970,0.53903186,113140.0,113130.0,1.58232858]
[1759232530167,0.55980362,113140.0,113130.0,1.58232858]
[1759232530370,0.8891022,113140.0,113130.0,0.03491]
[1759232530570,1.6628222,113140.0,113130.0,0.02129]
[1759232531374,1.6628222,113140.0,113130.0,0.02169]
[1759232532078,1.6628222,113140.0,113130.0,0.02129]
[1759232532475,1.6628222,113140.0,113120.0,0.02129]
[1759232532476,0.1190085,113130.0,113120.0,0.02129]
[1759232532779,0.1094263,113120.0,113110.0,0.03487]
[1759232532975,0.49099806,113120.0,113110.0,0.1232341]
[1759232533177,1.14959522,113120.0,113110.0,0.1224341]
[1759232533476,0.49099806,113120.0,113110.0,0.1228341]
[1759232533777,1.14859522,113120.0,113110.0,0.1224341]
[1759232533975,1.16159522,113120.0,113110.0,0.1228341]
[1759232534180,1.16159522,113120.0,113110.0,0.02169]
[1759232534682,1.98579522,113120.0,113110.0,0.1100541]
[1759232535183,1.16659522,113120.0,113110.0,0.1100541]
[1759232535478,1.98091522,113120.0,113110.0,0.1100541]
[1759232535674,1.98091522,113120.0,113110.0,0.1170541]
[1759232536676,1.98091522,113120.0,113110.0,0.1166541]
[1759232536882,1.98099522,113120.0,113110.0,0.1166541]
[1759232537079,1.98099522,113120.0,113110.0,0.13002391]
[1759232537381,1.16159522,113120.0,113110.0,0.13002391]
[1759232537580,1.98099522,113120.0,113110.0,0.14385391]
[1759232537782,1.98099522,113120.0,113110.0,0.14425391]
[1759232538081,1.98099522,113120.0,113110.0,0.14385391]
[1759232538284,1.98099522,113120.0,113110.0,0.13042391]
[1759232538477,1.16159522,113120.0,113110.0,0.13042391]
[1759232538671,1.98099522,113120.0,113110.0,0.13042391]
[1759232538872,1.16159522,113120.0,113110.0,0.13042391]
[1759232539283,1.98095522,113120.0,113110.0,0.13042391]
[1759232540280,1.98095522,113120.0,113110.0,0.04205981]
[1759232540477,2.38095522,113120.0,113110.0,0.02036981]
[1759232540780,2.38095522,113120.0,113110.0,0.02076981]
[1759232540986,2.38103522,113120.0,113110.0,0.02076981]
[1759232541678,2.38103522,113120.0,113110.0,0.0074]
[1759232542582,2.38103522,113120.0,113110.0,0.007]
[1759232543283,2.38103522,113120.0,113110.0,0.0074]
[1759232543481,1.56159522,113120.0,113110.0,0.0074]
[1759232543676,2.38127522,113120.0,113110.0,0.0074]
[1759232543986,2.38127522,113120.0,113110.0,0.007]
[1759232544188,2.38127522,113120.0,113110.0,0.0074]
[1759232545080,2.38127522,113120.0,113110.0,0.007]
[1759232545277,1.56159522,113120.0,113110.0,0.0074]
[1759232545484,2.38123522,113120.0,113110.0,0.0074]
[1759232545790,2.38119522,113120.0,113110.0,0.0074]
[1759232546280,1.56159522,113120.0,113110.0,0.0957641]
[1759232546590,2.38115522,113120.0,113110.0,0.1175641]
[1759232547089,1.56159522,113120.0,113110.0,0.1175641]
[1759232547591,2.38119522,113120.0,113110.0,0.1175641]
[1759232548493,2.38119522,113120.0,113110.0,0.0292]
[1759232549293,1.56159522,113120.0,113110.0,0.1175641]
[1759232549492,2.38119522,113120.0,113110.0,0.1175641]
[1759232552498,1.56159522,113120.0,113110.0,0.1175641]
[1759232552691,2.38091522,113120.0,113110.0,0.1175641]
[1759232553596,2.38083522,113120.0,113110.0,0.1175641]
[1759232553896,2.38083522,113120.0,113110.0,0.0292]
[1759232554292,0.90299806,113120.0,113110.0,0.0292]
[1759232554494,1.96779522,113120.0,113110.0,0.04303]
[1759232554791,1.14859522,113120.0,113110.0,0.04303]
[1759232555094,0.81929664,113120.0,113110.0,0.46069268]
[1759232555300,1.96779522,113120.0,113110.0,0.1313941]
[1759232555599,1.96779522,113120.0,113110.0,0.04303]
[1759232556001,1.98079522,113120.0,113110.0,0.0292]
[1759232559696,1.98079522,113120.0,113110.0,0.1175641]
[1759232561099,0.81929664,113120.0,113110.0,0.46069268]
[1759232561397,1.96735522,113120.0,113110.0,0.1313941]
[1759232561603,1.96743522,113120.0,113110.0,0.1313941]
[1759232563003,1.98043522,113120.0,113110.0,0.1313941]
[1759232564603,1.32183806,113120.0,113110.0,0.1313941]
[1759232564802,1.98043522,113120.0,113110.0,0.1313941]
[1759232565802,1.32183806,113120.0,113110.0,0.1313941]
[1759232566005,1.98043522,113120.0,113110.0,0.1313941]
[1759232566203,1.16159522,113120.0,113110.0,0.1313941]
[1759232566504,1.98007522,113120.0,113110.0,0.1313941]
[1759232567604,1.98007522,113120.0,113110.0,0.1175641]
[1759232567903,2.01185877,113120.0,113110.0,0.1175641]
[1759232569307,2.01185877,113120.0,113110.0,0.0292]
[1759232569804,2.01185877,113120.0,113110.0,0.0074]
[1759232570407,1.68268582,113120.0,113110.0,0.007]
[1759232570708,1.68268582,113120.0,113110.0,0.0074]
[1759232571602,1.68268582,113120.0,113110.0,0.007]
[1759232571804,0.86420582,113120.0,113110.0,0.0074]
[1759232572001,1.68228582,113120.0,113110.0,0.0074]
[1759232575512,1.68228582,113120.0,113110.0,0.03039]
[1759232576313,1.68228582,113120.0,113110.0,0.0074]
[1759232577313,1.72996115,113120.0,113110.0,0.0074]
[1759232580112,0.91188115,113120.0,113110.0,0.0074]
[1759232580417,1.72960115,113120.0,113110.0,0.0074]
[1759232580811,0.91188115,113120.0,113110.0,0.0074]
[1759232581011,1.72956115,113120.0,113110.0,0.0074]
[1759232581221,1.68188582,113120.0,113110.0,0.0074]
[1759232581514,1.68188582,113120.0,113110.0,0.007]
[1759232582114,1.68188582,113120.0,113110.0,0.0074]
[1759232583020,0.86420582,113120.0,113110.0,0.0074]
[1759232583318,1.68212582,113120.0,113110.0,0.0074]
[1759232583618,0.91188115,113120.0,113110.0,0.0074]
[1759232583819,1.72984115,113120.0,113110.0,0.0074]
[1759232584318,0.91188115,113120.0,113110.0,0.0074]
[1759232584518,1.72984115,113120.0,113110.0,0.0074]
[1759232586419,0.91188115,113120.0,113110.0,0.0074]
[1759232586616,1.72980115,113120.0,113110.0,0.0074]
[1759232586821,1.27268115,113120.0,113110.0,0.0074]
[1759232587218,2.09032115,113120.0,113110.0,0.0074]
[1759232587518,2.04264582,113120.0,113110.0,0.0074]
[1759232587919,1.22500582,113120.0,113110.0,0.0074]
[1759232588219,2.04248582,113120.0,113110.0,0.0074]
[1759232589317,2.0583776,113120.0,113110.0,0.0074]
[1759232589512,0.89847339,113120.0,113110.0,0.03039]
[1759232589722,1.76078515,113120.0,113110.0,0.03039]
[1759232589917,1.22505403,113120.0,113110.0,0.03039]
[1759232590121,2.03001403,113120.0,113110.0,0.04415]
[1759232590318,1.21205403,113120.0,113110.0,0.04415]
[1759232590517,2.03025403,113120.0,113110.0,0.04415]
[1759232590816,1.21205403,113120.0,113110.0,0.04415]
[1759232591021,2.04329403,113120.0,113110.0,0.03039]
[1759232591322,2.04327943,113120.0,113110.0,0.03039]
[1759232592524,1.22503943,113120.0,113110.0,0.03039]
[1759232592822,2.04315943,113120.0,113110.0,0.03039]
[1759232595621,1.68235943,113120.0,113110.0,0.03039]
[1759232596212,1.68235943,113120.0,113110.0,0.0074]
[1759232596922,1.68235943,113120.0,113110.0,0.007]
[1759232597522,1.68235943,113120.0,113110.0,0.0074]
[1759232598622,1.68235943,113120.0,113110.0,0.007]
[1759232598824,1.68235943,113120.0,113110.0,0.0074]
[1759232599227,1.65052767,113120.0,113110.0,0.0074]
[1759232602135,1.64992767,113120.0,113110.0,0.0074]
[1759232606728,0.83240767,113120.0,113110.0,0.0074]
[1759232606924,1.64948767,113120.0,113110.0,0.0304]
[1759232608024,1.64940767,113120.0,113110.0,0.0304]
[1759232609029,1.64928767,113120.0,113110.0,0.0304]
[1759232610424,0.83240767,113120.0,113110.0,0.0304]
[1759232610625,0.50298346,113120.0,113110.0,0.0304]
[1759232610827,0.83240767,113120.0,113110.0,0.0304]
[1759232611135,1.64896767,113120.0,113110.0,0.0304]
[1759232612134,0.83240767,113120.0,113110.0,0.0304]
[1759232612333,1.64900767,113120.0,113110.0,0.0304]
[1759232612633,1.31958346,113120.0,113110.0,0.0304]
[1759232612826,1.64900767,113120.0,113110.0,0.0304]
[1759232613026,1.31958346,113120.0,113110.0,0.0304]
[1759232613228,0.86423943,113120.0,113110.0,0.0304]
[1759232613426,1.68079943,113120.0,113110.0,0.0304]
[1759232615535,0.86423943,113120.0,113110.0,0.0304]
[1759232615736,1.68079943,113120.0,113110.0,0.0304]
[1759232617537,0.86423943,113120.0,113110.0,0.0304]
[1759232617738,1.68051943,113120.0,113110.0,0.0304]
[1759232626040,1.68051943,113120.0,113110.0,0.118765]
[1759232631948,1.31971943,113120.0,113110.0,0.118765]
[1759232632146,1.68051943,113120.0,113110.0,0.118765]
[1759232632353,2.00984652,113120.0,113110.0,0.118765]
[1759232636659,1.19356652,113120.0,113110.0,0.118765]
[1759232636856,2.00784652,113120.0,113110.0,0.118765]
[1759232638457,1.64704652,113120.0,113110.0,0.118765]
[1759232638757,2.00784652,113120.0,113110.0,0.118765]
[1759232639346,2.02369009,113120.0,113110.0,0.118765]
[1759232640259,1.36493879,113120.0,113110.0,0.118765]
[1759232640459,2.02369009,113120.0,113110.0,0.118765]
[1759232640759,0.55065879,113120.0,113110.0,0.84814065]
[1759232640959,1.69399444,113120.0,113110.0,0.86137065]
[1759232641258,1.68099444,113120.0,113110.0,0.86137065]
[1759232641446,0.56949977,113120.0,113110.0,0.86137065]
[1759232641654,1.71315492,113120.0,113110.0,0.86137065]
[1759232642150,1.66547959,113120.0,113110.0,0.531995]
[1759232642346,1.66547959,113120.0,113110.0,0.86137065]
[1759232642551,1.67847959,113120.0,113110.0,0.531995]
[1759232642752,2.00785524,113120.0,113110.0,0.84814065]
[1759232643159,2.00785524,113120.0,113110.0,0.518765]
[1759232644060,1.34910394,113120.0,113110.0,0.518765]
[1759232644259,2.00785524,113120.0,113110.0,0.518765]
[1759232644758,2.00785524,113120.0,113110.0,0.84814065]
[1759232644960,1.19357524,113120.0,113110.0,0.84814065]
[1759232645161,0.86419959,113120.0,113110.0,0.84814065]
[1759232645464,1.67859959,113120.0,113110.0,0.86137065]
[1759232646762,1.67859959,113120.0,113110.0,0.531995]
[1759232646962,2.00797524,113120.0,113110.0,0.86137065]
[1759232648165,1.19357524,113120.0,113110.0,0.46137065]
[1759232648354,1.67847959,113120.0,113110.0,0.46137065]
[1759232649264,1.64663911,113120.0,113110.0,0.46137065]
[1759232651164,1.64663911,113120.0,113110.0,0.131995]
[1759232651363,1.64663911,113120.0,113110.0,0.46137065]
[1759232657073,1.31726346,113120.0,113110.0,0.46137065]
[1759232657266,1.64663911,113120.0,113110.0,0.46137065]
[1759232658368,1.97601476,113120.0,113110.0,0.46137065]
[1759232658760,1.97601476,113120.0,113110.0,0.44814065]
[1759232659166,1.31726346,113120.0,113110.0,0.44814065]
[1759232659369,1.97601476,113120.0,113110.0,0.44814065]
[1759232659766,1.97601476,113120.0,113110.0,0.35977565]
[1759232661174,1.97601476,113120.0,113110.0,0.0304]
[1759232664465,1.97601476,113120.0,113110.0,0.0074]
[1759232665872,2.72329006,113120.0,113110.0,0.0074]
[1759232666167,0.1227724,113100.0,113090.0,0.06894239]
[1759232666362,1.61588086,113100.0,113090.0,0.02133]
[1759232666569,1.68609162,113100.0,113090.0,0.02133]
[1759232666770,0.89034165,113100.0,113090.0,0.06934239]
[1759232666970,1.70394165,113100.0,113090.0,0.02173]
[1759232667371,1.70394165,113100.0,113090.0,0.03873]
[1759232667671,1.70594165,113100.0,113090.0,0.03873]
[1759232667872,1.70594165,113100.0,113090.0,0.03833]
[1759232668178,1.70594165,113100.0,113090.0,0.0174]
[1759232668179,2.06674165,113100.0,113090.0,0.0174]
[1759232669270,1.25314165,113100.0,113090.0,0.0174]
[1759232669471,2.06674165,113100.0,113090.0,0.0174]
[1759232669777,1.25314165,113100.0,113090.0,0.0174]
[1759232670161,2.06674165,113100.0,113090.0,0.0174]
[1759232670674,2.06674165,113100.0,113090.0,0.017]
[1759232671173,1.25314165,113100.0,113090.0,0.0174]
[1759232671380,2.06674165,113100.0,113090.0,0.0174]
[1759232672272,1.25314165,113100.0,113090.0,0.0174]
[1759232672467,1.25314165,113100.0,113090.0,0.017]
[1759232672664,2.46678165,113100.0,113090.0,0.0174]
[1759232672871,1.65314165,113100.0,113090.0,0.0174]
[1759232673269,2.46694165,113100.0,113090.0,0.0174]
[1759232673575,1.80819035,113100.0,113090.0,0.03873]
[1759232673781,2.46694165,113100.0,113090.0,0.03873]
[1759232674276,2.46694165,113100.0,113090.0,0.36810565]
[1759232674678,1.63529162,113100.0,113090.0,0.36810565]
[1759232674872,2.46688411,113100.0,113090.0,0.36810565]
[1759232675073,0.97654032,113100.0,113090.0,0.36810565]
[1759232675268,1.71983597,113100.0,113090.0,0.45648625]
[1759232675773,0.90591597,113100.0,113090.0,0.45648625]
[1759232675974,1.71995597,113100.0,113090.0,0.45648625]
[1759232676581,1.39058032,113100.0,113090.0,0.47047625]
[1759232676882,1.71995597,113100.0,113090.0,0.47047625]
[1759232677272,1.71995597,113100.0,113090.0,0.03873]
[1759232677678,1.71995597,113100.0,113090.0,0.36810565]
[1759232677981,1.35915597,113100.0,113090.0,0.36810565]
[1759232679382,0.54511597,113100.0,113090.0,0.45648625]
[1759232679678,0.99586356,113100.0,113090.0,0.5019006]
[1759232679882,1.32523921,113100.0,113090.0,0.83127625]
[1759232680771,0.99586356,113100.0,113090.0,0.83127625]
[1759232680976,1.32523921,113100.0,113090.0,0.83127625]
[1759232681283,1.33815921,113100.0,113090.0,0.83127625]
[1759232682480,2.04883614,113100.0,113090.0,0.0174]
[1759232682886,2.04883614,113100.0,113090.0,0.017]
[1759232683085,2.04883614,113100.0,113090.0,0.0174]
[1759232683381,1.68819614,113100.0,113090.0,0.36922565]
[1759232683583,1.68819614,113100.0,113090.0,0.1286306]
[1759232683779,0.87423614,113100.0,113090.0,0.45800625]
[1759232683979,0.53194049,113100.0,113090.0,0.47103625]
[1759232684180,1.32543921,113100.0,113090.0,0.83183625]
[1759232684581,1.32547921,113100.0,113090.0,0.83183625]
[1759232684782,0.51143921,113100.0,113090.0,0.83183625]
[1759232684977,1.32543921,113100.0,113090.0,0.83183625]
[1759232688382,1.33833921,113100.0,113090.0,0.83183625]
[1759232688582,1.35884864,113100.0,113090.0,0.83183625]
[1759232692490,1.68822429,113100.0,113090.0,0.83183625]
[1759232692991,1.35884864,113100.0,113090.0,0.83183625]
[1759232694290,1.3589141,113100.0,113090.0,0.5024606]
[1759232695485,1.3589141,113100.0,113090.0,0.4894306]
[1759232696189,0.5449141,113100.0,113090.0,0.4894306]
[1759232696390,1.3579941,113100.0,113090.0,0.4894306]
[1759232696792,0.5449141,113100.0,113090.0,0.4894306]
[1759232696990,1.3580341,113100.0,113090.0,0.5024606]
[1759232699284,0.5449141,113100.0,113090.0,0.5024606]
[1759232699483,1.3579141,113100.0,113090.0,0.5024606]
[1759232701390,1.7187141,113100.0,113090.0,0.0174]
[1759232701697,1.7187141,113100.0,113090.0,0.04025]
[1759232701894,1.7187141,113100.0,113090.0,0.03985]
[1759232702983,1.7187141,113100.0,113090.0,0.04025]
[1759232703696,1.7187141,113100.0,113090.0,0.0174]
[1759232703996,1.7187141,113100.0,113090.0,0.03985]
[1759232704196,2.04815521,113100.0,113090.0,0.0174]
[1759232704396,1.7187141,113100.0,113090.0,0.0174]
[1759232704694,1.7187941,113100.0,113090.0,0.017]
[1759232704901,1.7187941,113100.0,113090.0,0.03985]
[1759232705395,1.7187941,113100.0,113090.0,0.0174]
[1759232706498,0.9057141,113100.0,113090.0,0.0174]
[1759232706797,1.7188341,113100.0,113090.0,0.0174]
[1759232707889,2.04827521,113100.0,113090.0,0.0174]
[1759232708091,1.7188341,113100.0,113090.0,0.0174]
[1759232711288,2.04827521,113100.0,113090.0,0.0174]
[1759232713101,2.04827521,113100.0,113090.0,0.017]
[1759232713300,2.04827521,113100.0,113090.0,0.0174]
[1759232713498,2.04823521,113100.0,113090.0,0.0174]
[1759232714106,1.23515521,113100.0,113090.0,0.0174]
[1759232714294,0.9057141,113100.0,113090.0,0.0174]
[1759232714496,1.7187141,113100.0,113090.0,0.0174]
[1759232716697,2.04815521,113100.0,113090.0,0.0174]
[1759232717904,2.0479456,113100.0,113090.0,0.0174]
[1759232718103,1.2349456,113100.0,113090.0,0.0174]
[1759232718310,2.0478256,113100.0,113090.0,0.0174]
[1759232720912,2.04776283,113100.0,113090.0,0.0174]
[1759232725608,2.04756283,113100.0,113090.0,0.0174]
[1759232726704,1.23488283,113100.0,113090.0,0.0395]
[1759232726909,1.71780172,113100.0,113090.0,0.0395]
[1759232727301,0.90544172,113100.0,113090.0,0.0395]
[1759232727508,1.71768172,113100.0,113090.0,0.0395]
[1759232728010,1.71768172,113100.0,113090.0,0.0174]
[1759232728811,2.04712283,113100.0,113090.0,0.0174]
[1759232729912,2.07896331,113100.0,113090.0,0.0174]
[1759232731101,2.12663864,113100.0,113090.0,0.017]
[1759232731306,2.12663864,113100.0,113090.0,0.0174]
[1759232731605,2.12663864,113100.0,113090.0,0.017]
[1759232731803,2.12663864,113100.0,113090.0,0.0174]
[1759232732003,2.10640159,113100.0,113090.0,0.0174]
[1759232732214,2.05872626,113100.0,113090.0,0.0174]
[1759232735112,2.05844626,113100.0,113090.0,0.017]
[1759232735616,2.05844626,113100.0,113090.0,0.0174]
[1759232736812,2.10612159,113100.0,113090.0,0.0174]
[1759232738212,2.2398344,113100.0,113090.0,0.0174]
[1759232738619,1.4278744,113100.0,113090.0,0.0174]
[1759232738917,2.2396344,113100.0,113090.0,0.0174]
[1759232739519,2.19195907,113100.0,113090.0,0.0174]
[1759232739912,2.19171907,113100.0,113090.0,0.0174]
[1759232740220,1.38019907,113100.0,113090.0,0.0174]
[1759232740612,2.15967859,113100.0,113090.0,0.0174]
[1759232741221,1.34835859,113100.0,113090.0,0.0174]
[1759232741614,2.15955859,113100.0,113090.0,0.0174]
[1759232742121,2.17764761,113100.0,113090.0,0.0174]
[1759232748324,2.20948809,113100.0,113090.0,0.0174]
[1759232751127,2.17764761,113100.0,113090.0,0.0174]
[1759232752424,1.51876539,113100.0,113090.0,0.0174]
[1759232752621,2.17764761,113100.0,113090.0,0.0174]
[1759232752923,2.17720761,113100.0,113090.0,0.04058]
[1759232753129,1.36644761,113100.0,113090.0,0.0174]
[1759232753329,2.17720761,113100.0,113090.0,0.0174]
[1759232756330,2.17739433,113100.0,113090.0,0.0174]
[1759232756530,1.51832539,113100.0,113090.0,0.0174]
[1759232756828,2.17739433,113100.0,113090.0,0.0174]
[1759232758731,1.81659433,113100.0,113090.0,0.0174]
[1759232758931,2.53819433,113100.0,113090.0,0.0174]
[1759232759232,2.53819433,113100.0,113090.0,0.04124548]
[1759232759432,2.57003481,113100.0,113090.0,0.04124548]
[1759232762528,2.89956928,113100.0,113090.0,0.04084548]
[1759232762833,2.89956928,113100.0,113090.0,0.04124548]
[1759232763533,2.89956928,113100.0,113090.0,0.01545478]
[1759232763733,0.0955384,113080.0,113070.0,0.0389655]
[1759232764035,1.94810734,113080.0,113070.0,0.0389655]
[1759232764235,1.94810734,113080.0,113070.0,0.0393655]
[1759232764734,1.94810734,113080.0,113070.0,0.0004]
[1759232765137,1.95868251,113080.0,113070.0,0.008]
[1759232765325,1.95868251,113080.0,113070.0,0.0084]
[1759232765730,1.95868251,113080.0,113070.0,0.03158]
[1759232766036,1.14796251,113080.0,113070.0,0.03158]
[1759232766231,1.14796251,113080.0,113070.0,0.0084]
[1759232766232,1.95868251,113080.0,113070.0,0.0084]
[1759232766839,1.95868251,113080.0,113070.0,0.03158]
[1759232767035,1.96868251,113080.0,113070.0,0.02358]
[1759232767438,1.15796251,113080.0,113070.0,0.02358]
[1759232767640,1.96868251,113080.0,113070.0,0.02358]
[1759232769244,0.46047804,113080.0,113070.0,0.45437067]
[1759232769540,1.27119804,113080.0,113070.0,0.45437067]
[1759232770242,0.46047804,113080.0,113070.0,0.45437067]
[1759232770436,1.27119804,113080.0,113070.0,0.45437067]
[1759232771243,0.46047804,113080.0,113070.0,0.45437067]
[1759232771442,1.27119804,113080.0,113070.0,0.45437067]
[1759232772145,0.46047804,113080.0,113070.0,0.45437067]
[1759232772336,0.94166357,113080.0,113070.0,1.21517067]
[1759232772836,0.13094357,113080.0,113070.0,1.21517067]
[1759232773441,0.94166357,113080.0,113070.0,1.21517067]
[1759232773642,0.13094357,113080.0,113070.0,1.21517067]
[1759232773840,0.94166357,113080.0,113070.0,1.21517067]
[1759232775444,0.13094357,113080.0,113070.0,1.54470514]
[1759232775742,0.83125517,113080.0,113070.0,1.54470514]
[1759232776139,0.83125517,113080.0,113070.0,1.21517067]
[1759232776540,0.02057517,113080.0,113070.0,1.54470514]
[1759232776747,0.01,113080.0,113070.0,1.54470514]
[1759232780347,0.01,113080.0,113070.0,1.21517067]
[1759232782438,0.01,113080.0,113070.0,1.54470514]
[1759232782840,0.01,113080.0,113070.0,2.35526514]
[1759232783746,0.01,113080.0,113070.0,2.40286779]
[1759232784549,0.01,113080.0,113070.0,2.41344637]
[1759232785649,0.01,113080.0,113070.0,1.59230779]
[1759232785945,0.01,113080.0,113070.0,2.07329332]
[1759232786148,0.03257,113080.0,113070.0,0.93323885]
[1759232786449,0.03257,113080.0,113070.0,2.07329332]
[1759232787145,0.03257,113080.0,113070.0,1.26277332]
[1759232787345,0.03257,113080.0,113070.0,2.07329332]
[1759232788047,0.03257,113080.0,113070.0,1.26277332]
[1759232788242,0.03257,113080.0,113070.0,2.07325332]
[1759232788446,0.36210447,113080.0,113070.0,2.07325332]
[1759232788951,0.36210447,113080.0,113070.0,1.26277332]
[1759232789143,0.03257,113080.0,113070.0,2.07325332]
[1759232789342,0.03257,113080.0,113070.0,2.02565067]
[1759232790241,0.03257,113080.0,113070.0,1.21517067]
[1759232790549,0.36210447,113080.0,113070.0,1.21517067]